[Event "Chile Championship Women 2022"]
[Site "Las Condes"]
[Date "2022.02.19"]
[Round "1.1"]
[White "Rozas Lazcano, Valeska"]
[Black "Toro Pradenas, Maria Jose"]
[Result "1/2-1/2"]
[ECO "B43"]
[WhiteElo "1456"]
[BlackElo "1979"]
[Annotator "NA"]
[PlyCount "115"]
[EventDate "2022.02.18"]
[EventType "tourn"]
[EventCountry "CHI"]
[SourceTitle "playchess.com"]
[Source "ChessBase"]
[SourceQuality "1"]
[TimeControl "5400+30"]

1. e4 c5 2. Nc3 e6 3. Nf3 a6 4. d4 cxd4 5. Nxd4 b5 {[%emt 0:02:30]} 6. a3 {[%emt 0:03:00]} Bb7 {[%emt 0:01:25]} 7. g3 {[%emt 0:00:00]} Nf6 {[%emt 0:03:31]} 8. Bg2 {[%emt 0:00:00]} Be7 {[%emt 0:10:26]} 9. O-O {[%emt 0:00:00]} Qc7 {[%emt 0:03:27]} 10. Be3 {[%emt 0:06:41]} d6 {[%emt 0:04:44]} 11. f4 {[%emt 0:03:08]} Nbd7 {[%emt 0:00:30]} 12. Nb3 {[%emt 0:07:03]} Nc5 {[%emt 0:08:40]} 13. Nd2 {[%emt 0:19:02]} g6 {[%emt 0:21:10]} 14. Qe2 {[%emt 0:08:43]} Rd8 {[%emt 0:14:24]} 15. Rad1 {[%emt 0:05:23]} O-O {[%emt 0:03:42]} 16. Bf2 {[%emt 0:11:12]} h5 {[%emt 0:13:10]} 17. h3 {[%emt 0:00:57]} d5 {[%emt 0:03:09]} 18. e5 {[%emt 0:14:28]} Ne8 {[%emt 0:00:28]} 19. Bd4 {[%emt 0:05:12]} Ng7 {[%emt 0:00:42]} 20. g4 {[%emt 0:00:44]} hxg4 {[%emt 0:04:56]} 21. hxg4 {[%emt 0:01:04]} Nd7 {[%emt 0:00:31]} 22. Nb3 {[%emt 0:03:34]} Nc5 {[%emt 0:00:57]} 23. Qe3 {[%emt 0:03:22]} Nxb3 {[%emt 0:00:05]} 24. cxb3 {[%emt 0:00:04]} Rc8 {[%emt 0:02:32]} 25. b4 {[%emt 0:00:17]} a5 {[%emt 0:00:49]} 26. Bb6 {[%emt 0:01:11]} Qd7 {[%emt 0:00:03]} 27. Bxa5 {[%emt 0:00:22]} Rc4 {[%emt 0:01:13]} 28. Bb6 {[%emt 0:00:51]} f5 {[%emt 0:00:42]} 29. g5 {[%emt 0:02:11]} Kf7 {[%emt 0:00:32]} 30. Bd4 {[%emt 0:01:21]} Rh8 {[%emt 0:00:22]} 31. Bf3 {[%emt 0:00:34]} Rcc8 {[%emt 0:00:39]} 32. Kg2 {[%emt 0:00:29]} Rh7 {[%emt 0:00:31]} 33. Rh1 {[%emt 0:00:07]} Rch8 {[%emt 0:00:04]} 34. Rxh7 {[%emt 0:00:52]} Rxh7 {[%emt 0:00:06]} 35. Rh1 {[%emt 0:00:03]} Rxh1 {[%emt 0:00:09]} 36. Kxh1 {[%emt 0:00:06]} Bc6 {[%emt 0:01:00]} 37. Ne2 {[%emt 0:01:29]} Qc8 {[%emt 0:00:31]} 38. Kg2 {[%emt 0:01:40]} Bd7 {[%emt 0:00:29]} 39. Nc3 {[%emt 0:02:01]} Qc4 {[%emt 0:00:45]} 40. Be2 {[%emt 0:00:32]} Qb3 {[%emt 0:00:33]} 41. Nxb5 {[%emt 0:00:28]} Qc2 {[%emt 0:00:50]} 42. Nc3 {[%emt 0:01:15]} Nh5 {[%emt 0:00:39]} 43. b5 {[%emt 0:00:46]} Bxb5 {[%emt 0:00:30]} 44. Nxb5 {[%emt 0:01:01]} Nxf4+ {[%emt 0:00:10]} 45. Kf3 {[%emt 0:00:25]} Nxe2 {[%emt 0:00:29]} 46. Qxe2 {[%emt 0:00:13]} Qb3+ {[%emt 0:00:20]} 47. Kg2 {[%emt 0:00:21]} Bxg5 {[%emt 0:00:12]} 48. Nd6+ {[%emt 0:00:32]} Kg7 {[%emt 0:01:00]} 49. Bc3 {[%emt 0:00:13]} d4 {[%emt 0:00:31]} 50. Bd2 {[%emt 0:01:41]} Qxb2 {[%emt 0:00:42]} 51. Nc4 {[%emt 0:00:26]} Qc2 {[%emt 0:00:24]} 52. Kf3 {[%emt 0:00:50]} d3 {[%emt 0:00:41]} 53. Qf2 {[%emt 0:00:08]} Qxc4 {[%emt 0:01:05]} 54. Qa7+ {[%emt 0:00:25]} Kh6 {[%emt 0:00:00]} 55. Bxg5+ {[%emt 0:00:17]} Kxg5 {[%emt 0:00:00]} 56. Qe7+ {[%emt 0:00:05]} Kh5 {[%emt 0:00:51]} 57. Qh7+ {[%emt 0:00:06]} Kg5 {[%emt 0:00:05]} 58. Qe7+ {[%emt 0:00:07]} 1/2-1/2

[Event "Chile Championship Women 2022"]
[Site "Las Condes"]
[Date "2022.02.19"]
[Round "1.3"]
[White "Fuentes Inzunza, Lesly"]
[Black "Lemus Pena, Macarena"]
[Result "0-1"]
[ECO "A00"]
[WhiteElo "1816"]
[BlackElo "1703"]
[Annotator "NA"]
[PlyCount "58"]
[EventDate "2022.02.18"]
[EventType "tourn"]
[EventCountry "CHI"]
[SourceTitle "playchess.com"]
[Source "ChessBase"]
[SourceQuality "1"]
[TimeControl "5400+30"]

1. e3 g6 2. c4 f5 3. Nc3 Nf6 4. d4 d6 5. b3 {[%emt 0:02:30]} Bg7 {[%emt 1:33:00]} 6. Bb2 O-O {[%emt 0:00:00]} 7. Nf3 {[%emt 0:48:20]} c6 {[%emt 0:00:00]} 8. Qc2 {[%emt 0:10:24]} Qe8 {[%emt 0:00:00]} 9. Be2 {[%emt 0:11:26]} Na6 {[%emt 0:02:00]} 10. a3 e5 11. O-O e4 12. Ne1 Nc7 13. g3 g5 14. Ng2 d5 15. a4 Kh8 16. h4 h6 17. Qd2 Ne6 18. Ba3 Rg8 19. Bd6 Nf8 20. hxg5 hxg5 21. f4 exf3 22. Bxf3 Qe6 23. c5 Ne8 24. Bxf8 Bxf8 25. Kf2 Be7 26. Rh1+ Kg7 27. Rh5 Rh8 28. Rxh8 Kxh8 {[%emt 0:00:00]} 29. Rh1+ {[%emt 0:11:17]} Kg7 {[%emt 0:00:00]} 0-1

[Event "Chile Championship Women 2022"]
[Site "Las Condes"]
[Date "2022.02.19"]
[Round "1.4"]
[White "Luna Benalcazar, Gianella"]
[Black "Morales Flores, Monserrat"]
[Result "1/2-1/2"]
[ECO "E62"]
[WhiteElo "1736"]
[BlackElo "1943"]
[Annotator "NA"]
[PlyCount "29"]
[EventDate "2022.02.18"]
[EventType "tourn"]
[EventCountry "CHI"]
[SourceTitle "playchess.com"]
[Source "ChessBase"]
[SourceQuality "1"]
[TimeControl "5400+30"]

1. d4 {[%emt 0:00:03]} Nf6 {[%emt 0:00:13]} 2. Nf3 g6 {[%emt 0:00:25]} 3. c4 {[%emt 0:00:37]} Bg7 {[%emt 0:00:19]} 4. g3 {[%emt 0:00:05]} O-O {[%emt 0:00:39]} 5. Bg2 {[%emt 0:00:05]} d6 {[%emt 0:00:38]} 6. O-O {[%emt 0:00:08]} Nc6 {[%emt 0:01:10]} 7. Nc3 {[%emt 0:00:18]} e5 {[%emt 0:01:52]} 8. dxe5 {[%emt 0:00:31]} dxe5 {[%emt 0:02:34]} 9. Qxd8 {[%emt 0:00:38]} Rxd8 {[%emt 0:00:57]} 10. Bg5 {[%emt 0:00:09]} Be6 {[%emt 0:02:41]} 11. Nd2 {[%emt 0:02:04]} h6 {[%emt 0:22:46]} 12. Bxf6 {[%emt 0:00:15]} Bxf6 {[%emt 0:00:05]} 13. Nde4 {[%emt 0:03:02]} Be7 {[%emt 0:02:15]} 14. Nd5 {[%emt 0:01:46]} Bxd5 {[%emt 0:12:07]} 15. cxd5 {[%emt 0:00:08]} 1/2-1/2

[Event "Chile Championship Women 2022"]
[Site "Las Condes"]
[Date "2022.02.19"]
[Round "1.5"]
[White "Gomez Barrera, Javiera Belen"]
[Black "Reyes Jara, Paula"]
[Result "1/2-1/2"]
[ECO "C97"]
[WhiteElo "2199"]
[BlackElo "1880"]
[Annotator "ChessBase"]
[PlyCount "175"]
[EventDate "2022.02.18"]
[EventType "tourn"]
[EventCountry "CHI"]
[SourceTitle "playchess.com"]
[Source "ChessBase"]
[SourceQuality "1"]
[TimeControl "5400+30"]

1. e4 {[%emt 0:00:04]} e5 {[%emt 0:00:11]} 2. Nf3 {[%emt 0:00:15]} Nc6 {[%emt 0:00:16]} 3. Bb5 {[%emt 0:00:15]} a6 {[%emt 0:00:42]} 4. Ba4 {[%emt 0:00:09]} Nf6 {[%emt 0:00:39]} 5. O-O {[%emt 0:00:36]} Be7 {[%emt 0:00:37]} 6. Re1 {[%emt 0:00:18]} b5 {[%emt 0:01:45]} 7. Bb3 {[%emt 0:00:08]} d6 {[%emt 0:02:02]} 8. c3 {[%emt 0:00:18]} O-O {[%emt 0:00:39]} 9. h3 {[%emt 0:00:24]} Na5 {[%emt 0:01:07]} 10. Bc2 {[%emt 0:00:15]} c5 {[%emt 0:00:08]} 11. d4 {[%emt 0:00:09]} Qc7 {[%emt 0:01:03]} 12. d5 {[%emt 0:00:13]} c4 {[%emt 0:03:05]} 13. b4 {[%emt 0:03:02]} cxb3 {[%emt 0:01:49]} 14. axb3 {[%emt 0:00:02]} Bd7 {[%emt 0:01:08]} 15. Be3 {[%emt 0:04:17]} Rfc8 {[%emt 0:02:56]} 16. Bd3 {[%emt 0:01:08]} Be8 {[%emt 0:02:29]} 17. Re2 {[%emt 0:04:27]} Nb7 {[%emt 0:02:57]} 18. b4 {[%emt 0:01:03]} a5 {[%emt 0:02:02]} 19. Rc2 {[%emt 0:17:58]} Qb8 {[%emt 0:03:36]} 20. Rca2 {[%emt 0:08:05]} a4 {[%emt 0:05:47]} 21. Qe2 {[%emt 0:09:21]} Nd8 {[%emt 0:01:47]} 22. Nfd2 {[%emt 0:09:57]} Qb7 {[%emt 0:04:12]} 23. c4 {[%emt 0:11:33]} bxc4 {[%emt 0:12:41]} 24. Nxc4 {[%emt 0:00:18]} Rxc4 {[%emt 0:00:23]} 25. Bxc4 {[%emt 0:00:21]} Nxe4 {[%emt 0:00:25]} 26. b5 {[%emt 0:02:17]} Qc8 {[%emt 0:20:12]} 27. Rxa4 {[%emt 0:01:20]} Rxa4 {[%emt 0:00:17]} 28. Rxa4 {[%emt 0:00:02]} f5 {[%emt 0:00:19]} 29. Bd3 {[%emt 0:12:24]} Nf6 {[%emt 0:00:21]} 30. Ra7 {[%emt 0:03:19]} Kf8 {[%emt 0:01:29]} 31. b6 {[%emt 0:09:29]} f4 {[%emt 0:07:26]} 32. Bxf4 {[%emt 0:01:23]} Nxd5 {[%emt 0:01:05]} 33. Be3 {[%emt 0:00:26]} Nf6 {[%emt 0:02:36]} 34. Qc2 {[%emt 0:00:42]} Qxc2 {[%emt 0:05:29]} 35. Bxc2 {[%emt 0:00:02]} Bc6 {[%emt 0:00:01]} 36. Ba4 {[%emt 0:01:23]} Bb7 {[%emt 0:01:09]} 37. Nc3 {[%emt 0:00:56]} d5 {[%emt 0:00:25]} 38. Nb5 {[%emt 0:00:36]} d4 {[%emt 0:00:25]} 39. Bg5 {[%emt 0:00:26]} Bc5 {[%emt 0:00:38]} 40. Bb3 {[%emt 0:00:34]} Bxb6 {[%emt 0:00:35]} 41. Ra1 {[%emt 0:00:01]} Ne4 {[%emt 0:02:03]} 42. Bc1 {[%emt 0:00:52]} d3 {[%emt 0:00:27]} 43. Ba3+ {[%emt 0:00:01]} Ke8 {[%emt 0:01:36]} 44. Nd6+ {[%emt 0:00:00]} Nxd6 {[%emt 0:00:06]} 45. Bxd6 {[%emt 0:00:02]} Bd4 {[%emt 0:00:24]} 46. Rb1 {[%emt 0:01:59]} Kd7 {[%emt 0:01:02]} 47. Bf8 {[%emt 0:00:11]} e4 {[%emt 0:00:08]} 48. Ba4+ {[%emt 0:00:21]} Ke6 {[%emt 0:01:18]} 49. Rb4 {[%emt 0:00:55]} Bf6 {[%emt 0:02:18]} 50. Bb3+ {[%emt 0:00:33]} Kd7 {[%emt 0:00:39]} 51. Bc5 {[%emt 0:00:22]} Bc6 {[%emt 0:01:40]} 52. Ba4 {[%emt 0:00:43]} Bxa4 {[%emt 0:01:14]} 53. Be3 {[%emt 0:00:30]} Bc6 {[%emt 0:00:24]} 54. Kf1 {[%emt 0:00:26]} Ne6 {[%emt 0:00:36]} 55. Rb3 {[%emt 0:00:09]} Nd4 {[%emt 0:01:09]} 56. Ra3 {[%emt 0:00:12]} Nb5 {[%emt 0:00:50]} 57. Rb3 {[%emt 0:00:59]} Kd6 {[%emt 0:00:50]} 58. f3 {[%emt 0:00:26]} Nd4 {[%emt 0:00:41]} 59. Ra3 {[%emt 0:00:32]} Nc2 {[%emt 0:00:43]} 60. Bf4+ {[%emt 0:00:01]} Kc5 {[%emt 0:00:50]} 61. Ra5+ {[%emt 0:00:53]} Kd4 {[%emt 0:01:13]} 62. fxe4 {[%emt 0:00:13]} Kxe4 {[%emt 0:00:11]} 63. Bd2 {[%emt 0:00:25]} Nd4 {[%emt 0:00:05]} 64. Rc5 {[%emt 0:00:58]} Bd5 {[%emt 0:00:07]} 65. Rc8 {[%emt 0:00:29]} Bf7 {[%emt 0:00:20]} 66. Rb8 {[%emt 0:00:42]} Bh5 {[%emt 0:01:41]} 67. Kf2 {[%emt 0:00:34]} Nc6 {[%emt 0:00:27]} 68. Rb5 {[%emt 0:00:25]} Bd4+ {[%emt 0:00:08]} 69. Kg3 {[%emt 0:00:31]} Bf7 {[%emt 0:00:25]} 70. Rb7 {[%emt 0:00:29]} Bd5 {[%emt 0:00:07]} 71. Rd7 {[%emt 0:00:25]} Be5+ {[%emt 0:00:42]} 72. Kf2 {[%emt 0:00:15]} Nd4 {[%emt 0:00:33]} 73. Re7 {[%emt 0:00:13]} Ne6 {[%emt 0:00:03]} 74. Re8 {[%emt 0:00:22]} Bd4+ {[%emt 0:00:07]} 75. Ke1 {[%emt 0:00:35]} Be3 {[%emt 0:00:15]} 76. Bc3 {[%emt 0:00:36]} Kf4 {[%emt 0:00:31]} 77. Re7 {[%emt 0:00:47]} Kg3 {[%emt 0:00:31]} 78. Rd7 {[%emt 0:00:44]} Bc4 {[%emt 0:01:43]} 79. h4 {[%emt 0:00:11]} Kxg2 {[%emt 0:00:32]} 80. h5 {[%emt 0:00:25]} Bh6 {[%emt 0:01:01]} 81. Bd2 {[%emt 0:00:27]} Bxd2+ {[%emt 0:01:47]} 82. Kxd2 {[%emt 0:00:02]} h6 {[%emt 0:00:09]} 83. Rd6 {[%emt 0:00:29]} Ng5 {[%emt 0:01:09]} 84. Ke3 {[%emt 0:00:51]} Bf7 {[%emt 0:00:48]} 85. Rd7 {[%emt 0:00:43]} Bxh5 {[%emt 0:00:05]} 86. Rxg7 {[%emt 0:00:31]} Be2 {[%emt 0:00:06]} 87. Rg6 {[%emt 0:00:17]} Kg3 {[%emt 0:01:50]} 88. Kd4 {[%emt 0:01:48]} 1/2-1/2

[Event "Chile Championship Women 2022"]
[Site "Las Condes"]
[Date "2022.02.19"]
[Round "2.1"]
[White "Morales Flores, Monserrat"]
[Black "Gomez Barrera, Javiera Belen"]
[Result "1/2-1/2"]
[ECO "B32"]
[WhiteElo "1943"]
[BlackElo "2199"]
[Annotator "ChessBase"]
[PlyCount "127"]
[EventDate "2022.02.18"]
[EventType "tourn"]
[EventCountry "CHI"]
[SourceTitle "playchess.com"]
[Source "ChessBase"]
[SourceQuality "1"]
[TimeControl "5400+30"]

1. e4 {[%emt 0:00:11]} c5 {[%emt 0:00:29]} 2. Nf3 {[%emt 0:00:14]} Nc6 {[%emt 0:00:11]} 3. d4 {[%emt 0:00:21]} cxd4 {[%emt 0:00:07]} 4. Nxd4 {[%emt 0:00:04]} e5 {[%emt 0:00:56]} 5. Nb5 {[%emt 0:00:26]} d6 {[%emt 0:00:12]} 6. N1c3 {[%emt 0:00:56]} a6 {[%emt 0:00:15]} 7. Na3 {[%emt 0:00:04]} Be7 {[%emt 0:00:23]} 8. Nc4 {[%emt 0:02:21]} b5 {[%emt 0:05:18]} 9. Ne3 {[%emt 0:03:52]} Nf6 {[%emt 0:01:00]} 10. Bd3 {[%emt 0:05:07]} Nb4 {[%emt 0:05:06]} 11. Be2 {[%emt 0:04:09]} O-O {[%emt 0:01:15]} 12. O-O {[%emt 0:02:53]} Be6 {[%emt 0:09:35]} 13. a4 {[%emt 0:12:43]} bxa4 {[%emt 0:20:24]} 14. Rxa4 {[%emt 0:04:37]} d5 {[%emt 0:13:30]} 15. exd5 {[%emt 0:01:07]} Nfxd5 {[%emt 0:00:17]} 16. Ncxd5 {[%emt 0:03:55]} Nxd5 {[%emt 0:01:03]} 17. Bf3 {[%emt 0:07:55]} Nxe3 {[%emt 0:11:42]} 18. Bxe3 {[%emt 0:00:11]} Rc8 {[%emt 0:00:17]} 19. Qxd8 {[%emt 0:22:51]} Rfxd8 {[%emt 0:00:21]} 20. Rc1 {[%emt 0:01:28]} Bc4 {[%emt 0:11:05]} 21. h3 {[%emt 0:06:47]} Bb5 {[%emt 0:02:56]} 22. Raa1 {[%emt 0:02:44]} Rd6 {[%emt 0:05:36]} 23. Be4 {[%emt 0:02:35]} g6 {[%emt 0:01:29]} 24. g4 {[%emt 0:03:05]} Bc6 {[%emt 0:02:28]} 25. Bxc6 {[%emt 0:01:02]} Rdxc6 {[%emt 0:00:50]} 26. c3 {[%emt 0:00:51]} f5 {[%emt 0:00:38]} 27. f3 {[%emt 0:00:21]} Rd8 {[%emt 0:02:08]} 28. Rd1 {[%emt 0:01:18]} Kf7 {[%emt 0:02:11]} 29. Kf1 {[%emt 0:03:39]} Ke6 {[%emt 0:00:37]} 30. Ke2 {[%emt 0:00:20]} h5 {[%emt 0:01:38]} 31. Rxd8 {[%emt 0:04:20]} Bxd8 {[%emt 0:00:01]} 32. Rd1 {[%emt 0:00:17]} Be7 {[%emt 0:00:36]} 33. Bf2 {[%emt 0:00:57]} hxg4 {[%emt 0:01:23]} 34. hxg4 {[%emt 0:00:10]} fxg4 {[%emt 0:00:41]} 35. fxg4 {[%emt 0:00:04]} Rc4 {[%emt 0:00:07]} 36. Ra1 {[%emt 0:00:52]} Rxg4 {[%emt 0:01:10]} 37. Rxa6+ {[%emt 0:00:05]} Kf5 {[%emt 0:00:06]} 38. Ra7 {[%emt 0:00:59]} Bg5 {[%emt 0:00:53]} 39. b4 {[%emt 0:00:53]} Ke4 {[%emt 0:00:27]} 40. b5 {[%emt 0:00:16]} Rg2 {[%emt 0:00:32]} 41. Ra4+ {[%emt 0:00:30]} Kd5 {[%emt 0:00:28]} 42. c4+ {[%emt 0:00:59]} Kd6 {[%emt 0:00:33]} 43. Kf3 {[%emt 0:01:10]} Rh2 {[%emt 0:00:15]} 44. Ra6+ {[%emt 0:00:18]} Kd7 {[%emt 0:00:45]} 45. Rxg6 {[%emt 0:01:05]} Bf4 {[%emt 0:00:00]} 46. Ba7 {[%emt 0:00:33]} Rb2 {[%emt 0:00:58]} 47. Bb6 {[%emt 0:01:29]} Rb3+ {[%emt 0:00:20]} 48. Ke4 {[%emt 0:00:14]} Rc3 {[%emt 0:00:38]} 49. Rc6 {[%emt 0:00:44]} Rc1 {[%emt 0:00:24]} 50. Rc7+ {[%emt 0:00:27]} Ke6 {[%emt 0:00:01]} 51. Rc6+ {[%emt 0:00:09]} Kd7 {[%emt 0:00:01]} 52. Rc7+ {[%emt 0:01:09]} Ke6 {[%emt 0:00:02]} 53. Bf2 {[%emt 0:00:13]} Rc2 {[%emt 0:00:38]} 54. Rc6+ {[%emt 0:00:31]} Kd7 {[%emt 0:00:07]} 55. Bh4 {[%emt 0:00:36]} Re2+ {[%emt 0:00:33]} 56. Kf5 {[%emt 0:00:21]} Be3 {[%emt 0:00:22]} 57. Rg6 {[%emt 0:00:36]} Rc2 {[%emt 0:01:08]} 58. Rg7+ {[%emt 0:00:23]} Kc8 {[%emt 0:00:01]} 59. Rg4 {[%emt 0:00:16]} Bd4 {[%emt 0:00:17]} 60. Rg8+ {[%emt 0:00:57]} Kb7 {[%emt 0:00:19]} 61. Rg7+ {[%emt 0:00:10]} Kc8 {[%emt 0:00:36]} 62. Rg8+ {[%emt 0:00:05]} Kb7 {[%emt 0:00:04]} 63. Rg7+ {[%emt 0:00:05]} Kc8 {[%emt 0:00:01]} 64. Ke4 {[%emt 0:00:37]} 1/2-1/2

[Event "Chile Championship Women 2022"]
[Site "Las Condes"]
[Date "2022.02.19"]
[Round "2.2"]
[White "Lemus Pena, Macarena"]
[Black "Luna Benalcazar, Gianella"]
[Result "0-1"]
[ECO "A25"]
[WhiteElo "1703"]
[BlackElo "1736"]
[Annotator "NA"]
[PlyCount "64"]
[EventDate "2022.02.18"]
[EventType "tourn"]
[EventCountry "CHI"]
[SourceTitle "playchess.com"]
[Source "ChessBase"]
[SourceQuality "1"]
[TimeControl "5400+30"]

1. Nf3 {[%emt 0:01:46]} g6 {[%emt 0:00:11]} 2. g3 {[%emt 0:00:18]} Bg7 {[%emt 0:00:03]} 3. c4 {[%emt 0:00:39]} e5 {[%emt 0:00:30]} 4. Nc3 {[%emt 0:00:27]} f5 {[%emt 0:01:32]} 5. d3 {[%emt 0:01:05]} Nc6 {[%emt 0:00:08]} 6. Bg2 {[%emt 0:01:04]} Nf6 {[%emt 0:00:18]} 7. Rb1 {[%emt 0:03:03]} a5 {[%emt 0:01:43]} 8. a3 {[%emt 0:00:13]} d6 {[%emt 0:09:04]} 9. b4 {[%emt 0:05:09]} axb4 {[%emt 0:02:15]} 10. axb4 {[%emt 0:00:10]} Qe7 {[%emt 0:07:34]} 11. b5 {[%emt 0:07:27]} Nd8 {[%emt 0:03:39]} 12. Bg5 {[%emt 0:10:07]} Ne6 {[%emt 0:04:05]} 13. Nd5 {[%emt 0:13:09]} Qf7 {[%emt 0:00:24]} 14. b6 {[%emt 0:07:14]} Nxd5 {[%emt 0:08:35]} 15. cxd5 {[%emt 0:00:25]} Nxg5 {[%emt 0:01:47]} 16. Nxg5 {[%emt 0:00:07]} Qf6 {[%emt 0:10:37]} 17. Qc1 {[%emt 0:02:41]} cxb6 {[%emt 0:08:52]} 18. Rxb6 {[%emt 0:08:19]} Qd8 {[%emt 0:09:18]} 19. Rb1 {[%emt 0:00:57]} Bh6 {[%emt 0:08:48]} 20. f4 {[%emt 0:02:56]} Bxg5 {[%emt 0:01:31]} 21. fxg5 {[%emt 0:00:07]} O-O {[%emt 0:00:48]} 22. O-O {[%emt 0:00:22]} Ra4 {[%emt 0:02:43]} 23. e4 {[%emt 0:00:40]} Rd4 {[%emt 0:01:03]} 24. Rb3 {[%emt 0:01:04]} b5 {[%emt 0:03:11]} 25. Qe3 {[%emt 0:02:33]} Bd7 {[%emt 0:01:50]} 26. h4 {[%emt 0:01:03]} Qa5 {[%emt 0:01:05]} 27. Rf2 {[%emt 0:02:51]} b4 {[%emt 0:01:28]} 28. Rbb2 {[%emt 0:02:12]} Rc8 {[%emt 0:03:01]} 29. Bf1 {[%emt 0:02:08]} Qa4 {[%emt 0:01:57]} 30. Rfd2 {[%emt 0:02:57]} b3 {[%emt 0:01:39]} 31. Bg2 {[%emt 0:07:15]} Rc2 {[%emt 0:01:38]} 32. Qe2 {[%emt 0:00:57]} Qa1+ {[%emt 0:00:13]} 0-1

[Event "Chile Championship Women 2022"]
[Site "Las Condes"]
[Date "2022.02.19"]
[Round "2.5"]
[White "Araos Diaz, Constanza Paz"]
[Black "Rozas Lazcano, Valeska"]
[Result "1-0"]
[ECO "A45"]
[WhiteElo "1435"]
[BlackElo "1456"]
[Annotator "NA"]
[PlyCount "115"]
[EventDate "2022.02.18"]
[EventType "tourn"]
[EventCountry "CHI"]
[SourceTitle "playchess.com"]
[Source "ChessBase"]
[SourceQuality "1"]
[TimeControl "5400+30"]

1. d4 {[%emt 0:00:02]} Nf6 {[%emt 0:01:25]} 2. Bf4 {[%emt 0:00:03]} g6 {[%emt 0:00:12]} 3. Nc3 {[%emt 0:00:16]} d6 {[%emt 0:00:20]} 4. f3 {[%emt 0:00:52]} Nbd7 {[%emt 0:00:29]} 5. e4 {[%emt 0:01:18]} c5 {[%emt 0:04:58]} 6. dxc5 {[%emt 0:05:24]} Nxc5 {[%emt 0:08:05]} 7. Qd2 {[%emt 0:00:22]} Ne6 {[%emt 0:05:20]} 8. Be3 {[%emt 0:01:30]} Bd7 {[%emt 0:02:07]} 9. O-O-O {[%emt 0:02:32]} Qa5 {[%emt 0:05:47]} 10. Kb1 {[%emt 0:08:08]} Bg7 {[%emt 0:08:02]} 11. Nge2 {[%emt 0:07:17]} Rc8 {[%emt 0:06:27]} 12. Nd4 {[%emt 0:08:27]} Nxd4 {[%emt 0:10:57]} 13. Bxd4 {[%emt 0:00:16]} Bc6 {[%emt 0:07:20]} 14. Nd5 {[%emt 0:21:28]} Qxd2 {[%emt 0:05:21]} 15. Nxf6+ {[%emt 0:01:12]} Bxf6 {[%emt 0:00:09]} 16. Rxd2 {[%emt 0:00:10]} Bxd4 {[%emt 0:00:09]} 17. Rxd4 {[%emt 0:00:09]} O-O {[%emt 0:00:07]} 18. g4 {[%emt 0:04:14]} Kg7 {[%emt 0:01:26]} 19. h4 {[%emt 0:00:31]} h6 {[%emt 0:00:20]} 20. Bg2 {[%emt 0:07:05]} Rc7 {[%emt 0:03:09]} 21. Rg1 {[%emt 0:05:30]} Rfc8 {[%emt 0:03:42]} 22. c3 {[%emt 0:01:03]} Bd7 {[%emt 0:02:40]} 23. Bf1 {[%emt 0:04:26]} b5 {[%emt 0:02:05]} 24. a3 {[%emt 0:01:56]} a5 {[%emt 0:00:54]} 25. Be2 {[%emt 0:03:26]} Rc5 {[%emt 0:01:23]} 26. Rgd1 {[%emt 0:01:16]} Be6 {[%emt 0:00:58]} 27. f4 {[%emt 0:01:18]} Bb3 {[%emt 0:02:54]} 28. R1d2 {[%emt 0:01:06]} f6 {[%emt 0:00:41]} 29. f5 {[%emt 0:00:36]} g5 {[%emt 0:08:05]} 30. h5 {[%emt 0:00:12]} Kf7 {[%emt 0:00:20]} 31. Bd1 {[%emt 0:00:28]} Bxd1 {[%emt 0:01:02]} 32. Rxd1 {[%emt 0:00:03]} Ke8 {[%emt 0:00:44]} 33. Rd5 {[%emt 0:00:33]} Kd7 {[%emt 0:02:08]} 34. Rxc5 {[%emt 0:01:03]} Rxc5 {[%emt 0:00:07]} 35. Rd4 {[%emt 0:00:23]} Kc6 {[%emt 0:00:30]} 36. Kc2 {[%emt 0:00:44]} Re5 {[%emt 0:03:46]} 37. Kd3 {[%emt 0:00:28]} e6 {[%emt 0:03:41]} 38. b3 {[%emt 0:02:01]} exf5 {[%emt 0:00:13]} 39. exf5 {[%emt 0:01:18]} Re1 {[%emt 0:00:49]} 40. Re4 {[%emt 0:01:09]} Rxe4 {[%emt 0:00:57]} 41. Kxe4 {[%emt 0:00:02]} d5+ {[%emt 0:00:30]} 42. Kd4 {[%emt 0:00:02]} Kd6 {[%emt 0:00:22]} 43. a4 {[%emt 0:02:50]} bxa4 {[%emt 0:00:41]} 44. bxa4 {[%emt 0:00:02]} Kc6 {[%emt 0:00:15]} 45. c4 {[%emt 0:00:20]} dxc4 {[%emt 0:00:35]} 46. Kxc4 {[%emt 0:00:01]} Kd6 {[%emt 0:00:07]} 47. Kb5 {[%emt 0:01:24]} Ke5 {[%emt 0:00:33]} 48. Kxa5 {[%emt 0:00:05]} Kf4 {[%emt 0:00:10]} 49. Kb5 {[%emt 0:00:07]} Kxg4 {[%emt 0:00:06]} 50. a5 {[%emt 0:00:08]} Kh3 {[%emt 0:01:06]} 51. a6 {[%emt 0:00:07]} g4 {[%emt 0:00:04]} 52. a7 {[%emt 0:00:07]} g3 {[%emt 0:00:06]} 53. a8=Q {[%emt 0:00:20]} g2 {[%emt 0:00:04]} 54. Qf3+ {[%emt 0:00:21]} Kh2 {[%emt 0:00:24]} 55. Qf2 {[%emt 0:01:56]} Kh1 {[%emt 0:00:13]} 56. Qh4+ {[%emt 0:00:10]} Kg1 {[%emt 0:00:05]} 57. Qxf6 {[%emt 0:00:40]} Kf2 {[%emt 0:00:17]} 58. Qd4+ {[%emt 0:00:16]} 1-0

[Event "Chile Championship Women 2022"]
[Site "Las Condes"]
[Date "2022.02.19"]
[Round "3.1"]
[White "Sanchez Tobar, Francisca Valentina"]
[Black "Araos Diaz, Constanza Paz"]
[Result "1-0"]
[ECO "B01"]
[WhiteElo "1837"]
[BlackElo "1435"]
[Annotator "NA"]
[PlyCount "69"]
[EventDate "2022.02.18"]
[EventType "tourn"]
[EventCountry "CHI"]
[SourceTitle "playchess.com"]
[Source "ChessBase"]
[SourceQuality "1"]
[TimeControl "5400+30"]

1. e4 {[%emt 0:00:04]} d5 {[%emt 0:00:02]} 2. exd5 {[%emt 0:00:07]} Qxd5 {[%emt 0:00:51]} 3. Nc3 {[%emt 0:00:13]} Qd6 {[%emt 0:00:07]} 4. d4 {[%emt 0:00:29]} Nf6 {[%emt 0:00:02]} 5. Nf3 {[%emt 0:00:29]} Bg4 {[%emt 0:00:07]} 6. h3 {[%emt 0:00:33]} Bxf3 {[%emt 0:00:06]} 7. Qxf3 {[%emt 0:00:21]} c6 {[%emt 0:00:05]} 8. Be3 {[%emt 0:00:53]} e6 {[%emt 0:00:09]} 9. O-O-O {[%emt 0:00:53]} Qc7 {[%emt 0:00:14]} 10. Kb1 {[%emt 0:01:35]} Be7 {[%emt 0:02:24]} 11. g4 {[%emt 0:03:54]} Nd5 {[%emt 0:01:10]} 12. Ne4 {[%emt 0:01:06]} Nxe3 {[%emt 0:00:48]} 13. fxe3 {[%emt 0:00:25]} O-O {[%emt 0:02:13]} 14. Nc3 {[%emt 0:02:20]} Nd7 {[%emt 0:04:05]} 15. Bd3 {[%emt 0:05:38]} b5 {[%emt 0:03:53]} 16. h4 {[%emt 0:00:48]} a5 {[%emt 0:02:18]} 17. g5 {[%emt 0:01:13]} a4 {[%emt 0:16:33]} 18. Ne4 {[%emt 0:09:08]} b4 {[%emt 0:07:26]} 19. Rdg1 {[%emt 0:05:09]} f6 {[%emt 0:14:33]} 20. gxf6 {[%emt 0:01:57]} Bxf6 {[%emt 0:00:03]} 21. Qg4 {[%emt 0:08:11]} e5 {[%emt 0:05:39]} 22. Ng5 {[%emt 0:56:04]} Bxg5 {[%emt 0:00:54]} 23. hxg5 {[%emt 0:00:00]} g6 {[%emt 0:03:38]} 24. Qh4 {[%emt 0:00:00]} Nb6 {[%emt 0:04:58]} 25. Bxg6 {[%emt 0:00:00]} Ra7 {[%emt 0:00:35]} 26. Bd3 {[%emt 0:00:00]} Qe7 {[%emt 0:01:36]} 27. dxe5 {[%emt 0:00:00]} Nd5 {[%emt 0:02:17]} 28. g6 {[%emt 0:00:00]} Qxh4 {[%emt 0:00:23]} 29. gxh7+ {[%emt 0:00:00]} Kh8 {[%emt 0:00:13]} 30. Rxh4 {[%emt 0:00:00]} Nxe3 {[%emt 0:01:11]} 31. Rxb4 {[%emt 0:00:00]} Nd5 {[%emt 0:02:05]} 32. Rbg4 {[%emt 0:00:00]} Ne7 {[%emt 0:00:40]} 33. Bc4 {[%emt 0:00:00]} Raa8 $18 {[%emt 0:00:55]} 34. Be6 {[%emt 0:00:00]} Kxh7 {[%emt 0:03:30]} 35. Rh4# {[%emt 0:00:00]} 1-0